[Event "Chessheroes Superhero Challenge 2022"]
[Site "Randburg"]
[Date "2022.01.05"]
[Round "1.1"]
[White "Lekgau, Mothupi"]
[Black "Klaver, Cornelis"]
[Result "1/2-1/2"]
[ECO "E08"]
[WhiteElo "1940"]
[BlackElo "2050"]
[Annotator "NA"]
[PlyCount "102"]
[EventDate "2022.01.05"]
[EventType "tourn"]
[EventCountry "RSA"]
[SourceTitle "playchess.com"]
[Source "ChessBase"]
[SourceQuality "1"]
[TimeControl "5400+30"]

1. Nf3 {[%emt 0:00:27]} d5 {[%emt 0:05:43]} 2. g3 {[%emt 0:01:50]} e6 {[%emt 0:01:03]} 3. Bg2 {[%emt 0:00:35]} Nf6 {[%emt 0:00:53]} 4. O-O {[%emt 0:00:53]} Be7 {[%emt 0:00:26]} 5. d4 {[%emt 0:00:40]} O-O {[%emt 0:01:18]} 6. c4 {[%emt 0:00:34]} Nbd7 {[%emt 0:12:18]} 7. Qc2 {[%emt 0:01:54]} Ne4 {[%emt 0:07:54]} 8. Nfd2 {[%emt 0:05:27]} f5 {[%emt 0:08:21]} 9. Nxe4 {[%emt 0:04:01]} fxe4 {[%emt 0:01:44]} 10. cxd5 {[%emt 0:03:50]} exd5 {[%emt 0:00:15]} 11. Qb3 {[%emt 0:00:47]} Nf6 {[%emt 0:03:17]} 12. Nc3 {[%emt 0:00:23]} Kh8 {[%emt 0:01:03]} 13. Bg5 {[%emt 0:06:42]} c6 {[%emt 0:01:33]} 14. f3 {[%emt 0:00:17]} exf3 {[%emt 0:02:48]} 15. exf3 {[%emt 0:01:04]} Qb6 {[%emt 0:08:12]} 16. Be3 {[%emt 0:03:03]} Qxb3 {[%emt 0:07:26]} 17. axb3 {[%emt 0:00:05]} Bf5 {[%emt 0:00:07]} 18. Rfc1 {[%emt 0:04:21]} Rfe8 {[%emt 0:01:01]} 19. Kf2 {[%emt 0:01:57]} Nd7 {[%emt 0:04:00]} 20. Na4 {[%emt 0:07:04]} Bf6 {[%emt 0:01:11]} 21. Nc3 {[%emt 0:09:57]} a6 {[%emt 0:06:28]} 22. g4 {[%emt 0:06:06]} Bh4+ {[%emt 0:06:39]} 23. Ke2 {[%emt 0:00:08]} Rxe3+ {[%emt 0:07:23]} 24. Kxe3 {[%emt 0:00:35]} Re8+ {[%emt 0:00:03]} 25. Kd2 {[%emt 0:21:19]} Bg5+ {[%emt 0:00:11]} 26. Kd1 {[%emt 0:00:09]} Bd3 {[%emt 0:00:45]} 27. Rc2 {[%emt 0:02:21]} Bxc2+ {[%emt 0:03:34]} 28. Kxc2 {[%emt 0:00:10]} Nf8 {[%emt 0:01:18]} 29. Bf1 {[%emt 0:02:10]} Re3 {[%emt 0:01:03]} 30. Be2 {[%emt 0:02:58]} Ne6 {[%emt 0:00:23]} 31. Rd1 {[%emt 0:01:39]} c5 {[%emt 0:02:43]} 32. f4 {[%emt 0:06:23]} Bxf4 {[%emt 0:02:51]} 33. dxc5 {[%emt 0:00:36]} d4 {[%emt 0:00:21]} 34. Bc4 {[%emt 0:00:05]} dxc3 {[%emt 0:01:29]} 35. Bxe6 {[%emt 0:00:08]} g6 {[%emt 0:00:53]} 36. Bc8 {[%emt 0:00:35]} cxb2 {[%emt 0:00:29]} 37. Kxb2 {[%emt 0:00:32]} Be5+ {[%emt 0:00:28]} 38. Ka3 {[%emt 0:00:52]} Rc3 {[%emt 0:00:27]} 39. Rd5 {[%emt 0:01:08]} Bxh2 {[%emt 0:00:20]} 40. Bxb7 {[%emt 0:00:05]} a5 {[%emt 0:00:59]} 41. c6 {[%emt 0:00:14]} Kg7 {[%emt 0:00:49]} 42. Rxa5 {[%emt 0:00:17]} Bd6+ {[%emt 0:00:16]} 43. Ka4 {[%emt 0:00:28]} Rg3 {[%emt 0:00:07]} 44. Bc8 {[%emt 0:00:44]} Kf6 {[%emt 0:00:23]} 45. Rd5 {[%emt 0:00:33]} Ke7 {[%emt 0:00:32]} 46. b4 {[%emt 0:00:22]} Rc3 {[%emt 0:00:18]} 47. Bd7 {[%emt 0:01:04]} Rc4 {[%emt 0:00:25]} 48. Rb5 {[%emt 0:00:05]} h5 {[%emt 0:00:12]} 49. Rb7 {[%emt 0:01:32]} hxg4 {[%emt 0:01:09]} 50. Bxg4+ {[%emt 0:00:18]} Kf6 {[%emt 0:00:04]} 51. Be2 {[%emt 0:00:30]} Rxc6 {[%emt 0:00:24]} 1/2-1/2

[Event "Chessheroes Superhero Challenge 2022"]
[Site "Randburg"]
[Date "2022.01.05"]
[Round "1.2"]
[White "Du Plessis, Heinco"]
[Black "Mabusela, Johannes Manyedi"]
[Result "0-1"]
[ECO "B11"]
[WhiteElo "2003"]
[BlackElo "2216"]
[Annotator "NA"]
[PlyCount "68"]
[EventDate "2022.01.05"]
[EventType "tourn"]
[EventCountry "RSA"]
[SourceTitle "playchess.com"]
[Source "ChessBase"]
[SourceQuality "1"]
[TimeControl "5400+30"]

1. e4 {[%emt 0:00:12]} c6 {[%emt 0:00:11]} 2. Nc3 {[%emt 0:00:04]} d5 {[%emt 0:00:29]} 3. Nf3 {[%emt 0:02:51]} Bg4 {[%emt 0:02:51]} 4. h3 {[%emt 0:00:55]} Bxf3 {[%emt 0:00:09]} 5. Qxf3 {[%emt 0:00:04]} e6 {[%emt 0:00:08]} 6. d4 {[%emt 0:00:03]} Nf6 {[%emt 0:02:40]} 7. Bg5 {[%emt 0:15:17]} Be7 {[%emt 0:07:47]} 8. O-O-O {[%emt 0:03:20]} dxe4 {[%emt 0:03:21]} 9. Nxe4 {[%emt 0:01:09]} Nbd7 {[%emt 0:00:23]} 10. Bd3 {[%emt 0:02:58]} Qa5 {[%emt 0:03:42]} 11. Bxf6 {[%emt 0:01:34]} Nxf6 {[%emt 0:00:42]} 12. Kb1 {[%emt 0:00:07]} O-O-O {[%emt 0:09:57]} 13. c3 {[%emt 0:01:18]} Qc7 {[%emt 0:02:09]} 14. g4 {[%emt 0:02:46]} Kb8 {[%emt 0:03:40]} 15. Rhe1 {[%emt 0:04:26]} Rdf8 {[%emt 0:05:33]} 16. Nd2 {[%emt 0:22:37]} Nd5 {[%emt 0:01:51]} 17. Nc4 {[%emt 0:02:09]} Nf4 {[%emt 0:10:01]} 18. Ne5 {[%emt 0:08:10]} g5 {[%emt 0:10:21]} 19. Be4 {[%emt 0:11:09]} f6 {[%emt 0:00:21]} 20. Nc4 {[%emt 0:05:47]} h5 {[%emt 0:01:35]} 21. Rh1 {[%emt 0:04:01]} Rh6 {[%emt 0:01:13]} 22. b4 {[%emt 0:03:28]} f5 {[%emt 0:14:10]} 23. gxf5 {[%emt 0:00:40]} exf5 {[%emt 0:00:02]} 24. Bc2 {[%emt 0:00:18]} g4 {[%emt 0:01:36]} 25. hxg4 {[%emt 0:01:18]} fxg4 {[%emt 0:01:47]} 26. Qe3 {[%emt 0:00:45]} Re6 {[%emt 0:01:07]} 27. Qg3 {[%emt 0:01:52]} Ne2 {[%emt 0:05:57]} 28. Qd3 {[%emt 0:02:47]} Rxf2 {[%emt 0:06:34]} 29. Rxh5 {[%emt 0:00:05]} a6 {[%emt 0:02:44]} 30. Rh8+ {[%emt 0:00:07]} Ka7 {[%emt 0:00:32]} 31. Ne5 {[%emt 0:00:21]} Rxe5 {[%emt 0:00:37]} 32. dxe5 {[%emt 0:00:18]} Qxe5 {[%emt 0:00:01]} 33. Rh5 {[%emt 0:02:11]} Qxc3 {[%emt 0:02:12]} 34. Rh7 {[%emt 0:01:18]} Qxb4+ {[%emt 0:00:12]} 0-1

[Event "Chessheroes Superhero Challenge 2022"]
[Site "Randburg"]
[Date "2022.01.05"]
[Round "1.3"]
[White "Parodi, Alessandro"]
[Black "Hercules, Benjamin Vincent"]
[Result "1/2-1/2"]
[ECO "A14"]
[WhiteElo "1997"]
[BlackElo "2101"]
[Annotator "NA"]
[PlyCount "181"]
[EventDate "2022.01.05"]
[EventType "tourn"]
[EventCountry "RSA"]
[SourceTitle "playchess.com"]
[Source "ChessBase"]
[SourceQuality "1"]
[TimeControl "5400+30"]

1. Nf3 {[%emt 0:00:07]} d5 {[%emt 0:00:35]} 2. c4 {[%emt 0:00:15]} e6 {[%emt 0:00:27]} 3. g3 {[%emt 0:00:26]} Nf6 {[%emt 0:00:43]} 4. Bg2 {[%emt 0:00:19]} Be7 {[%emt 0:00:14]} 5. O-O {[%emt 0:00:57]} O-O {[%emt 0:00:56]} 6. Qc2 {[%emt 0:02:42]} b6 {[%emt 0:10:54]} 7. cxd5 {[%emt 0:08:01]} Nxd5 {[%emt 0:00:33]} 8. Nc3 {[%emt 0:00:43]} Bb7 {[%emt 0:05:51]} 9. Rd1 {[%emt 0:12:20]} Nd7 {[%emt 0:07:59]} 10. Nxd5 {[%emt 0:02:36]} exd5 {[%emt 0:01:56]} 11. d4 {[%emt 0:00:38]} Bd6 {[%emt 0:05:36]} 12. Bg5 {[%emt 0:03:41]} Qe8 {[%emt 0:02:09]} 13. b4 {[%emt 0:01:15]} c6 {[%emt 0:05:46]} 14. Rab1 {[%emt 0:03:14]} b5 {[%emt 0:05:36]} 15. Ne1 {[%emt 0:05:03]} Nb6 {[%emt 0:09:55]} 16. e4 {[%emt 0:02:08]} f6 {[%emt 0:01:54]} 17. Bc1 {[%emt 0:03:52]} Qe7 {[%emt 0:01:05]} 18. exd5 {[%emt 0:00:52]} cxd5 {[%emt 0:01:55]} 19. Nd3 {[%emt 0:00:14]} Rfe8 {[%emt 0:07:24]} 20. Bf4 {[%emt 0:07:30]} Rac8 {[%emt 0:08:35]} 21. Qb3 {[%emt 0:01:38]} Bxf4 {[%emt 0:00:43]} 22. Nxf4 {[%emt 0:00:39]} Rc4 {[%emt 0:00:45]} 23. Nd3 {[%emt 0:02:13]} Rxd4 {[%emt 0:05:03]} 24. Re1 {[%emt 0:01:51]} Qf7 {[%emt 0:00:58]} 25. Rxe8+ {[%emt 0:01:25]} Qxe8 {[%emt 0:00:01]} 26. Re1 {[%emt 0:00:16]} Qf7 {[%emt 0:01:12]} 27. Nc5 {[%emt 0:02:12]} Bc8 {[%emt 0:02:57]} 28. Bf1 {[%emt 0:01:16]} Nc4 {[%emt 0:02:31]} 29. Qc3 {[%emt 0:01:04]} Rg4 {[%emt 0:04:15]} 30. Bh3 {[%emt 0:01:44]} Qh5 {[%emt 0:01:01]} 31. Qd3 {[%emt 0:01:34]} Rxg3+ {[%emt 0:02:44]} 32. Qxg3 {[%emt 0:01:22]} Qxh3 {[%emt 0:00:58]} 33. Re7 {[%emt 0:03:53]} Qxg3+ {[%emt 0:01:06]} 34. hxg3 {[%emt 0:00:53]} Kf8 {[%emt 0:01:30]} 35. Rxa7 {[%emt 0:00:34]} Bf5 {[%emt 0:00:06]} 36. Kf1 {[%emt 0:01:15]} d4 {[%emt 0:00:53]} 37. Ke2 {[%emt 0:02:34]} Ne5 {[%emt 0:00:51]} 38. Nb3 {[%emt 0:02:19]} d3+ {[%emt 0:00:58]} 39. Kd2 {[%emt 0:01:24]} h5 {[%emt 0:00:33]} 40. f4 {[%emt 0:02:25]} Nc4+ {[%emt 0:01:22]} 41. Kc3 {[%emt 0:00:06]} g5 {[%emt 0:00:00]} 42. fxg5 {[%emt 0:00:13]} fxg5 {[%emt 0:00:00]} 43. a4 {[%emt 0:02:35]} bxa4 {[%emt 0:00:46]} 44. Rxa4 {[%emt 0:02:11]} Nd6 {[%emt 0:00:10]} 45. Nd2 {[%emt 0:02:05]} h4 {[%emt 0:00:23]} 46. gxh4 {[%emt 0:00:39]} gxh4 {[%emt 0:00:02]} 47. Kd4 {[%emt 0:04:02]} h3 {[%emt 0:01:27]} 48. Ke5 {[%emt 0:00:56]} Ke7 {[%emt 0:00:07]} 49. Nf1 {[%emt 0:01:39]} h2 {[%emt 0:00:45]} 50. Nxh2 {[%emt 0:03:38]} d2 {[%emt 0:00:09]} 51. Ra1 {[%emt 0:01:09]} Bc2 {[%emt 0:00:15]} 52. Ng4 {[%emt 0:02:26]} d1=Q {[%emt 0:00:54]} 53. Rxd1 {[%emt 0:00:03]} Bxd1 {[%emt 0:00:06]} 54. Ne3 {[%emt 0:00:02]} Nf7+ {[%emt 0:00:16]} 55. Kd4 {[%emt 0:00:31]} Bb3 {[%emt 0:00:18]} 56. Nc4 {[%emt 0:00:23]} Ng5 {[%emt 0:00:37]} 57. Na5 {[%emt 0:00:31]} Ne6+ {[%emt 0:00:16]} 58. Ke5 {[%emt 0:00:30]} Ba4 {[%emt 0:00:17]} 59. Nb7 {[%emt 0:00:18]} Bc6 {[%emt 0:00:54]} 60. Na5 {[%emt 0:01:19]} Bg2 {[%emt 0:01:06]} 61. Nb3 {[%emt 0:00:22]} Nd8 {[%emt 0:00:33]} 62. Nd4 {[%emt 0:01:04]} Nf7+ {[%emt 0:00:05]} 63. Kf4 {[%emt 0:00:29]} Kd6 {[%emt 0:00:21]} 64. Ke3 {[%emt 0:00:10]} Kd5 {[%emt 0:00:28]} 65. Kd3 {[%emt 0:00:12]} Nd6 {[%emt 0:00:19]} 66. Nc2 {[%emt 0:01:08]} Be4+ {[%emt 0:00:19]} 67. Kc3 {[%emt 0:00:02]} Nb5+ {[%emt 0:00:35]} 68. Kb3 {[%emt 0:00:10]} Bd3 {[%emt 0:00:34]} 69. Na3 {[%emt 0:00:32]} Nd4+ {[%emt 0:00:50]} 70. Kc3 {[%emt 0:00:18]} Ke4 {[%emt 0:00:20]} 71. b5 {[%emt 0:00:14]} Be2 {[%emt 0:01:00]} 72. Kb4 {[%emt 0:00:59]} Kd5 {[%emt 0:00:18]} 73. Nb1 {[%emt 0:00:27]} Kd6 {[%emt 0:00:38]} 74. Nc3 {[%emt 0:00:33]} Bf3 {[%emt 0:00:28]} 75. Kc4 {[%emt 0:00:21]} Ne6 {[%emt 0:00:44]} 76. Kb4 {[%emt 0:01:11]} Nf8 {[%emt 0:00:50]} 77. Kc4 {[%emt 0:00:39]} Bg2 {[%emt 0:00:35]} 78. Kd4 {[%emt 0:00:14]} Bf1 {[%emt 0:00:27]} 79. Ne4+ {[%emt 0:00:09]} Kc7 {[%emt 0:00:10]} 80. Kc5 {[%emt 0:00:26]} Nd7+ {[%emt 0:00:08]} 81. Kb4 {[%emt 0:00:17]} Kb6 {[%emt 0:00:26]} 82. Nd6 {[%emt 0:00:20]} Ne5 {[%emt 0:00:31]} 83. Nc8+ {[%emt 0:00:21]} Kb7 {[%emt 0:00:29]} 84. Ne7 {[%emt 0:00:27]} Kc7 {[%emt 0:00:45]} 85. Nf5 {[%emt 0:01:33]} Kb6 {[%emt 0:00:32]} 86. Ne3 {[%emt 0:01:05]} Nd3+ {[%emt 0:00:37]} 87. Kc3 {[%emt 0:00:12]} Be2 {[%emt 0:00:20]} 88. Kd2 {[%emt 0:00:03]} Nf4 {[%emt 0:00:09]} 89. Nd5+ {[%emt 0:00:03]} Nxd5 {[%emt 0:00:07]} 90. Kxe2 {[%emt 0:00:06]} Kxb5 {[%emt 0:00:36]} 91. Ke1 {[%emt 0:07:13]} 1/2-1/2

[Event "Chessheroes Superhero Challenge 2022"]
[Site "Randburg"]
[Date "2022.01.05"]
[Round "1.4"]
[White "Mazibuko, Khanya"]
[Black "February, Jesse Nikki"]
[Result "1-0"]
[ECO "C03"]
[WhiteElo "1940"]
[BlackElo "1845"]
[Annotator "NA"]
[PlyCount "89"]
[EventDate "2022.01.05"]
[EventType "tourn"]
[EventCountry "RSA"]
[SourceTitle "playchess.com"]
[Source "ChessBase"]
[SourceQuality "1"]
[TimeControl "5400+30"]

1. e4 {[%emt 0:00:14]} e6 {[%emt 0:00:11]} 2. d4 {[%emt 0:00:26]} d5 {[%emt 0:00:08]} 3. Nd2 {[%emt 0:00:20]} h6 {[%emt 0:00:09]} 4. Ngf3 {[%emt 0:01:32]} Nf6 {[%emt 0:00:46]} 5. e5 {[%emt 0:00:15]} Nfd7 {[%emt 0:00:35]} 6. Bd3 {[%emt 0:00:13]} c5 {[%emt 0:00:54]} 7. c3 {[%emt 0:00:08]} Nc6 {[%emt 0:00:14]} 8. O-O {[%emt 0:02:53]} g5 {[%emt 0:01:14]} 9. h3 {[%emt 0:00:56]} h5 {[%emt 0:00:27]} 10. g4 {[%emt 0:00:12]} hxg4 {[%emt 0:06:44]} 11. hxg4 {[%emt 0:00:01]} Qb6 {[%emt 0:02:23]} 12. Qa4 {[%emt 0:06:13]} Be7 {[%emt 0:05:22]} 13. Re1 {[%emt 0:01:36]} Nf8 {[%emt 0:08:29]} 14. Nf1 {[%emt 0:04:52]} Bd7 {[%emt 0:01:20]} 15. Qb3 {[%emt 0:00:19]} Qc7 {[%emt 0:06:20]} 16. dxc5 {[%emt 0:01:15]} Ng6 {[%emt 0:05:47]} 17. Bxg6 {[%emt 0:03:58]} fxg6 {[%emt 0:00:28]} 18. Qc2 {[%emt 0:00:36]} O-O-O {[%emt 0:03:04]} 19. b4 {[%emt 0:00:07]} Rh3 {[%emt 0:01:33]} 20. Ng3 {[%emt 0:00:34]} Rf8 {[%emt 0:08:30]} 21. Kg2 {[%emt 0:01:30]} Rh4 {[%emt 0:13:46]} 22. Nxh4 {[%emt 0:25:43]} gxh4 {[%emt 0:01:51]} 23. Bh6 {[%emt 0:00:09]} Rh8 {[%emt 0:02:47]} 24. Qxg6 {[%emt 0:00:17]} hxg3 {[%emt 0:01:45]} 25. f4 {[%emt 0:00:13]} Qd8 {[%emt 0:04:23]} 26. Bg7 {[%emt 0:02:07]} Rg8 {[%emt 0:04:00]} 27. f5 {[%emt 0:00:10]} d4 {[%emt 0:04:56]} 28. Rad1 {[%emt 0:00:33]} Bf8 {[%emt 0:03:02]} 29. f6 {[%emt 0:01:17]} dxc3 {[%emt 0:03:45]} 30. Qf7 {[%emt 0:00:52]} Bxg7 {[%emt 0:01:57]} 31. Rxd7 {[%emt 0:00:22]} Qxd7 {[%emt 0:00:13]} 32. Qxg8+ {[%emt 0:00:02]} Nd8 {[%emt 0:00:13]} 33. Kxg3 {[%emt 0:04:49]} Bh6 {[%emt 0:01:43]} 34. Rf1 {[%emt 0:02:42]} Qf7 {[%emt 0:03:33]} 35. Qh8 {[%emt 0:01:17]} Bd2 {[%emt 0:01:02]} 36. Qh2 {[%emt 0:03:22]} Qg6 {[%emt 0:00:25]} 37. Qe2 {[%emt 0:00:55]} Nf7 {[%emt 0:00:28]} 38. Qc4 {[%emt 0:00:59]} Ng5 {[%emt 0:01:35]} 39. f7 {[%emt 0:00:36]} Nxf7 {[%emt 0:00:37]} 40. Rf6 {[%emt 0:00:02]} Be1+ {[%emt 0:00:19]} 41. Kg2 {[%emt 0:01:00]} Qc2+ {[%emt 0:00:11]} 42. Kf1 {[%emt 0:00:02]} Ng5 {[%emt 0:01:32]} 43. Rf8+ {[%emt 0:00:44]} Kc7 {[%emt 0:00:10]} 44. Qd4 {[%emt 0:00:10]} Ne4 {[%emt 0:02:26]} 45. Rf7+ {[%emt 0:01:14]} 1-0

[Event "Chessheroes Superhero Challenge 2022"]
[Site "Randburg"]
[Date "2022.01.05"]
[Round "2.1"]
[White "Klaver, Cornelis"]
[Black "February, Jesse Nikki"]
[Result "1-0"]
[ECO "D35"]
[WhiteElo "2050"]
[BlackElo "1845"]
[Annotator "NA"]
[PlyCount "57"]
[EventDate "2022.01.05"]
[EventType "tourn"]
[EventCountry "RSA"]
[SourceTitle "playchess.com"]
[Source "ChessBase"]
[SourceQuality "1"]
[TimeControl "5400+30"]

1. d4 {[%emt 0:00:08]} d5 {[%emt 0:00:51]} 2. c4 {[%emt 0:02:59]} e6 {[%emt 0:00:31]} 3. cxd5 {[%emt 0:01:08]} exd5 {[%emt 0:00:12]} 4. Nc3 {[%emt 0:01:05]} c6 {[%emt 0:00:13]} 5. Nf3 {[%emt 0:01:12]} Nf6 {[%emt 0:00:18]} 6. Qc2 {[%emt 0:06:47]} g6 {[%emt 0:05:39]} 7. Bg5 {[%emt 0:04:49]} Bg7 {[%emt 0:01:49]} 8. e3 {[%emt 0:04:37]} Bf5 {[%emt 0:03:18]} 9. Bd3 {[%emt 0:03:45]} Bxd3 {[%emt 0:00:12]} 10. Qxd3 {[%emt 0:00:02]} O-O {[%emt 0:00:25]} 11. O-O {[%emt 0:01:22]} Nbd7 {[%emt 0:02:55]} 12. b4 {[%emt 0:01:00]} Re8 {[%emt 0:01:59]} 13. b5 {[%emt 0:02:31]} Qa5 {[%emt 0:04:55]} 14. Bxf6 {[%emt 0:05:14]} Nxf6 {[%emt 0:00:57]} 15. bxc6 {[%emt 0:03:35]} bxc6 {[%emt 0:01:19]} 16. Nd2 {[%emt 0:00:25]} Qc7 {[%emt 0:04:24]} 17. Na4 {[%emt 0:02:32]} Ng4 {[%emt 0:01:26]} 18. Nf3 {[%emt 0:08:19]} Bh6 {[%emt 0:05:30]} 19. h3 {[%emt 0:02:12]} Nf6 {[%emt 0:04:23]} 20. Rac1 {[%emt 0:07:02]} Ne4 {[%emt 0:02:40]} 21. Ne5 {[%emt 0:02:34]} Qa5 {[%emt 0:05:22]} 22. Qc2 {[%emt 0:11:37]} c5 {[%emt 0:02:06]} 23. Nxc5 {[%emt 0:04:35]} Rec8 {[%emt 0:09:43]} 24. Qb3 {[%emt 0:06:15]} Qd8 {[%emt 0:08:38]} 25. Nxe4 {[%emt 0:00:35]} Rcb8 {[%emt 0:05:17]} 26. Qxd5 {[%emt 0:00:29]} Qxd5 {[%emt 0:01:50]} 27. Nf6+ {[%emt 0:00:04]} Kg7 {[%emt 0:00:12]} 28. Nxd5 {[%emt 0:00:02]} Rb2 {[%emt 0:00:31]} 29. Rc7 {[%emt 0:00:32]} 1-0

[Event "Chessheroes Superhero Challenge 2022"]
[Site "Randburg"]
[Date "2022.01.05"]
[Round "2.2"]
[White "Hercules, Benjamin Vincent"]
[Black "Mazibuko, Khanya"]
[Result "1/2-1/2"]
[ECO "D97"]
[WhiteElo "2101"]
[BlackElo "1940"]
[Annotator "NA"]
[PlyCount "172"]
[EventDate "2022.01.05"]
[EventType "tourn"]
[EventCountry "RSA"]
[SourceTitle "playchess.com"]
[Source "ChessBase"]
[SourceQuality "1"]
[TimeControl "5400+30"]

1. d4 {[%emt 0:00:06]} Nf6 {[%emt 0:00:21]} 2. c4 {[%emt 0:00:17]} g6 {[%emt 0:00:45]} 3. Nc3 {[%emt 0:00:23]} d5 {[%emt 0:00:28]} 4. Nf3 {[%emt 0:03:38]} Bg7 {[%emt 0:01:32]} 5. Qb3 {[%emt 0:00:16]} dxc4 {[%emt 0:01:17]} 6. Qxc4 {[%emt 0:00:03]} O-O {[%emt 0:01:34]} 7. e4 {[%emt 0:00:49]} Nc6 {[%emt 0:00:46]} 8. Be2 {[%emt 0:04:10]} e5 {[%emt 0:00:49]} 9. d5 {[%emt 0:01:10]} Nd4 {[%emt 0:00:14]} 10. Nxd4 {[%emt 0:02:30]} exd4 {[%emt 0:00:16]} 11. Qxd4 {[%emt 0:00:20]} c6 {[%emt 0:01:03]} 12. Qc4 {[%emt 0:01:22]} b5 {[%emt 0:00:06]} 13. Qb3 {[%emt 0:05:52]} a5 {[%emt 0:06:28]} 14. a3 {[%emt 0:11:32]} cxd5 {[%emt 0:08:45]} 15. exd5 {[%emt 0:01:28]} Ba6 {[%emt 0:17:36]} 16. O-O {[%emt 0:04:37]} b4 {[%emt 0:02:59]} 17. axb4 {[%emt 0:10:03]} Bxe2 {[%emt 0:02:51]} 18. Nxe2 {[%emt 0:00:19]} Qe7 {[%emt 0:00:29]} 19. Be3 {[%emt 0:05:55]} Qxb4 {[%emt 0:01:06]} 20. Qxb4 {[%emt 0:04:23]} axb4 {[%emt 0:00:03]} 21. Rad1 {[%emt 0:11:50]} Rfd8 {[%emt 0:00:23]} 22. Nf4 {[%emt 0:01:46]} g5 {[%emt 0:04:50]} 23. Nd3 {[%emt 0:00:22]} Rxd5 {[%emt 0:00:03]} 24. Nxb4 {[%emt 0:00:45]} Rb5 {[%emt 0:00:01]} 25. Nd3 {[%emt 0:00:45]} Ng4 {[%emt 0:01:20]} 26. Bc1 {[%emt 0:03:05]} Ne5 {[%emt 0:01:36]} 27. Nxe5 {[%emt 0:04:14]} Bxe5 {[%emt 0:00:02]} 28. Bxg5 {[%emt 0:01:43]} Bxb2 {[%emt 0:01:22]} 29. Be3 {[%emt 0:00:15]} Bf6 {[%emt 0:00:58]} 30. g3 {[%emt 0:03:03]} Kg7 {[%emt 0:00:23]} 31. Rd6 {[%emt 0:02:09]} Rba5 {[%emt 0:01:26]} 32. Kg2 {[%emt 0:00:32]} R8a6 {[%emt 0:01:05]} 33. Rfd1 {[%emt 0:00:39]} Rxd6 {[%emt 0:00:35]} 34. Rxd6 {[%emt 0:00:01]} Ra4 {[%emt 0:02:02]} 35. Kf3 {[%emt 0:01:28]} Rb4 {[%emt 0:01:04]} 36. Rc6 {[%emt 0:01:03]} Ra4 {[%emt 0:00:49]} 37. Rb6 {[%emt 0:04:22]} Rc4 {[%emt 0:00:33]} 38. Rb3 {[%emt 0:00:23]} Kg6 {[%emt 0:01:01]} 39. Rd3 {[%emt 0:00:43]} Ra4 {[%emt 0:00:34]} 40. Rd6 {[%emt 0:01:04]} Kg7 {[%emt 0:00:09]} 41. h3 {[%emt 0:00:35]} Rb4 {[%emt 0:00:54]} 42. Kg2 {[%emt 0:00:29]} Rb3 {[%emt 0:01:08]} 43. Ra6 {[%emt 0:00:31]} Rb4 {[%emt 0:00:17]} 44. Rd6 {[%emt 0:02:42]} Ra4 {[%emt 0:00:07]} 45. Rd3 {[%emt 0:00:49]} Ra2 {[%emt 0:00:33]} 46. g4 {[%emt 0:01:02]} Ra5 {[%emt 0:01:23]} 47. f4 {[%emt 0:01:03]} h6 {[%emt 0:01:05]} 48. Kg3 {[%emt 0:00:38]} Rb5 {[%emt 0:00:08]} 49. Kf3 {[%emt 0:01:02]} Ra5 {[%emt 0:00:10]} 50. Rb3 {[%emt 0:00:09]} Ra4 {[%emt 0:01:33]} 51. Rd3 {[%emt 0:00:33]} Rb4 {[%emt 0:02:03]} 52. Bf2 {[%emt 0:00:25]} Ra4 {[%emt 0:02:24]} 53. Be1 {[%emt 0:01:09]} Ra1 {[%emt 0:00:10]} 54. Bd2 {[%emt 0:00:29]} Ra4 {[%emt 0:00:07]} 55. Rb3 {[%emt 0:02:27]} Rc4 {[%emt 0:00:22]} 56. Kg3 {[%emt 0:01:33]} Ra4 {[%emt 0:00:41]} 57. h4 {[%emt 0:00:28]} Rc4 {[%emt 0:00:47]} 58. Rf3 {[%emt 0:01:20]} Rc2 {[%emt 0:00:08]} 59. Rd3 {[%emt 0:00:19]} Rc4 {[%emt 0:00:41]} 60. g5 {[%emt 0:01:24]} hxg5 {[%emt 0:00:03]} 61. hxg5 {[%emt 0:00:08]} Bb2 {[%emt 0:00:38]} 62. Rb3 {[%emt 0:00:04]} Bc1 {[%emt 0:00:35]} 63. Bc3+ {[%emt 0:00:30]} Kf8 {[%emt 0:02:35]} 64. Be5 {[%emt 0:00:17]} Ke7 {[%emt 0:01:42]} 65. Rb7+ {[%emt 0:00:22]} Ke6 {[%emt 0:00:04]} 66. Rb6+ {[%emt 0:00:13]} Ke7 {[%emt 0:00:41]} 67. Kg4 {[%emt 0:00:14]} Bd2 {[%emt 0:00:28]} 68. Kf5 {[%emt 0:00:19]} Bc3 {[%emt 0:00:48]} 69. Rb7+ {[%emt 0:01:01]} Ke8 {[%emt 0:00:02]} 70. Bd6 {[%emt 0:01:10]} Rd4 {[%emt 0:02:19]} 71. Rb8+ {[%emt 0:01:10]} Kd7 {[%emt 0:00:08]} 72. Be5 {[%emt 0:00:25]} Rb4 {[%emt 0:01:56]} 73. Ra8 {[%emt 0:01:35]} Bxe5 {[%emt 0:00:03]} 74. fxe5 {[%emt 0:00:03]} Rb6 {[%emt 0:00:05]} 75. Ra7+ {[%emt 0:00:32]} Ke8 {[%emt 0:00:02]} 76. Ra1 {[%emt 0:00:49]} Ke7 {[%emt 0:00:02]} 77. Ra7+ {[%emt 0:00:36]} Ke8 {[%emt 0:00:01]} 78. Rc7 {[%emt 0:00:23]} Ra6 {[%emt 0:00:01]} 79. Rb7 {[%emt 0:00:52]} Rc6 {[%emt 0:00:45]} 80. Rb1 {[%emt 0:00:11]} Ke7 {[%emt 0:00:01]} 81. Rb2 {[%emt 0:00:16]} Ra6 {[%emt 0:00:01]} 82. Re2 {[%emt 0:00:19]} Ra1 {[%emt 0:00:12]} 83. Rf2 {[%emt 0:00:13]} Rb1 {[%emt 0:00:31]} 84. Rf4 {[%emt 0:00:13]} Ra1 {[%emt 0:00:03]} 85. Kg4 {[%emt 0:00:13]} Re1 {[%emt 0:00:05]} 86. Rf5 {[%emt 0:00:37]} Rg1+ {[%emt 0:00:18]} 1/2-1/2